bitfinex/quotes_BTCUSD_20250123
["timestamp","ask_amount","ask_price","bid_price","bid_amount"]
[1737614138836,0.56929869,102680.0,102670.0,7.58089938]
[1737614139817,0.69588696,102680.0,102670.0,7.58089938]
[1737614140666,0.60690517,102680.0,102670.0,7.58089938]
[1737614140896,0.67550517,102680.0,102670.0,7.58089938]
[1737614152552,0.67550517,102680.0,102670.0,7.58034153]
[1737614155867,0.55840517,102680.0,102670.0,7.58034153]
[1737614158730,0.50840517,102680.0,102670.0,7.58034153]
[1737614158945,0.55840517,102680.0,102670.0,7.58034153]
[1737614159314,0.64591506,102680.0,102670.0,7.58034153]
[1737614160144,0.74326235,102680.0,102670.0,7.58034153]
[1737614161812,0.7774418,102680.0,102670.0,7.58034153]
[1737614162226,0.68009451,102680.0,102670.0,7.58034153]
[1737614162685,0.63009451,102680.0,102670.0,7.58034153]
[1737614164017,0.67969451,102680.0,102670.0,7.58034153]
[1737614166167,0.63009451,102680.0,102670.0,7.58034153]
[1737614168232,0.76027102,102680.0,102670.0,7.58034153]
[1737614168434,1.02871831,102680.0,102670.0,7.58034153]
[1737614168661,1.07641831,102680.0,102670.0,7.58034153]
[1737614170151,0.98890842,102680.0,102670.0,7.58034153]
[1737614170592,0.89156113,102680.0,102670.0,7.58034153]
[1737614171264,0.89156113,102680.0,102670.0,7.55687658]
[1737614173771,0.89156113,102680.0,102670.0,7.52197658]
[1737614175377,0.51958462,102680.0,102670.0,7.60307658]
[1737614175776,0.54258462,102680.0,102670.0,7.60307658]
[1737614175951,0.69838191,102680.0,102670.0,7.60307658]
[1737614179296,0.69838191,102680.0,102670.0,7.52197658]
[1737614180678,0.81570842,102680.0,102670.0,7.52197658]
[1737614180890,0.88430842,102680.0,102670.0,7.52197658]
[1737614181549,0.98680842,102680.0,102670.0,7.52197658]
[1737614181772,0.88095876,102680.0,102670.0,7.52197658]
[1737614182633,0.88095876,102680.0,102670.0,7.48203611]
[1737614184227,0.81235876,102680.0,102670.0,7.48203611]
[1737614184431,0.71501147,102680.0,102670.0,7.48203611]
[1737614184970,0.66941147,102680.0,102670.0,7.48203611]
[1737614186310,0.77874134,102680.0,102670.0,7.42224957]
[1737614186638,0.98038259,102680.0,102670.0,7.42224957]
[1737614187017,1.07772988,102680.0,102670.0,7.40402957]
[1737614187186,0.96840001,102680.0,102670.0,7.40402957]
[1737614187593,1.07772988,102680.0,102670.0,7.20542042]
[1737614188001,1.07772988,102680.0,102670.0,7.14641042]
[1737614188251,1.07772988,102680.0,102670.0,7.08797042]
[1737614188891,1.07772988,102680.0,102670.0,7.01410242]
[1737614189262,1.07772988,102680.0,102670.0,6.93618242]
[1737614189466,1.07772988,102680.0,102670.0,6.91670242]
[1737614189726,1.07772988,102680.0,102670.0,6.8874644]
[1737614189936,1.07772988,102680.0,102670.0,6.5647644]
[1737614190341,0.76855272,102680.0,102670.0,6.5647644]
[1737614190563,0.48546147,102680.0,102670.0,6.5647644]
[1737614190776,0.48546147,102680.0,102670.0,6.6407644]
[1737614190977,0.33546147,102680.0,102670.0,6.6407644]
[1737614191186,0.50846147,102680.0,102670.0,6.6407644]
[1737614191431,0.35846147,102680.0,102670.0,6.6407644]
[1737614192077,0.50846147,102680.0,102670.0,6.6407644]
[1737614192306,0.2761316,102680.0,102670.0,6.6407644]
[1737614192513,0.50031967,102680.0,102670.0,6.6407644]
[1737614192939,0.48546147,102680.0,102670.0,6.6407644]
[1737614193139,0.50031967,102680.0,102670.0,6.6407644]
[1737614193657,0.52331967,102680.0,102670.0,6.6407644]
[1737614194496,0.57331967,102680.0,102670.0,6.6407644]
[1737614194858,1.39161967,102680.0,102670.0,6.6407644]
[1737614198663,1.44161967,102680.0,102670.0,6.6407644]
[1737614200816,1.39161967,102680.0,102670.0,6.6407644]
[1737614203010,1.44161967,102680.0,102670.0,6.6407644]
[1737614203430,1.39161967,102680.0,102670.0,6.6407644]
[1737614204264,1.48896696,102680.0,102670.0,6.6407644]
[1737614206489,1.39161967,102680.0,102670.0,6.6407644]
[1737614207732,1.42574382,102680.0,102670.0,6.6407644]
[1737614210238,1.48261263,102680.0,102670.0,6.6407644]
[1737614210463,1.54107263,102680.0,102670.0,6.5647644]
[1737614211082,1.54107263,102680.0,102670.0,6.5452844]
[1737614211353,1.54107263,102680.0,102670.0,6.49717112]
[1737614211587,1.63841992,102680.0,102670.0,6.49717112]
[1737614212433,0.77011992,102680.0,102670.0,6.49717112]
[1737614212837,0.67277263,102680.0,102670.0,6.49717112]
[1737614213764,0.56692438,102680.0,102670.0,6.49717112]
[1737614217124,0.67625716,102680.0,102670.0,6.48741916]
[1737614218334,0.56692438,102680.0,102670.0,6.48741916]
[1737614218976,0.56653326,102680.0,102670.0,6.48741916]
[1737614221030,0.66388055,102680.0,102670.0,6.48741916]
[1737614221368,0.66388055,102680.0,102670.0,6.41676916]
[1737614221595,0.94431333,102680.0,102670.0,6.02451986]
[1737614221999,0.94431333,102680.0,102670.0,6.00503986]
[1737614222201,0.56653326,102680.0,102670.0,5.92711986]
[1737614222409,1.35337326,102680.0,102670.0,6.00881986]
[1737614222830,1.37637326,102680.0,102670.0,6.00881986]
[1737614223950,1.43483326,102680.0,102670.0,5.92711986]
[1737614225902,1.43483326,102680.0,102670.0,5.92413648]
[1737614226085,1.53218055,102680.0,102670.0,5.92774326]
[1737614226506,1.43483326,102680.0,102670.0,5.92774326]
[1737614226745,1.37637326,102680.0,102670.0,5.92774326]
[1737614227380,0.50807326,102680.0,102670.0,5.92774326]
[1737614228401,0.50807326,102680.0,102670.0,6.00794326]
[1737614233663,1.37637326,102680.0,102670.0,6.00794326]
[1737614235587,1.43483326,102680.0,102670.0,6.00794326]
[1737614235796,1.37637326,102680.0,102670.0,6.00794326]
[1737614237844,1.41049726,102680.0,102670.0,6.00794326]
[1737614238248,1.42535546,102680.0,102670.0,6.00794326]
[1737614238447,1.41049726,102680.0,102670.0,6.00794326]
[1737614238634,1.42535546,102680.0,102670.0,6.00794326]
[1737614240013,1.41049726,102680.0,102670.0,6.00794326]
[1737614240231,1.41049726,102680.0,102670.0,6.05724326]
[1737614240466,1.42535546,102680.0,102670.0,6.05724326]
[1737614243265,1.47535546,102680.0,102670.0,6.05724326]
[1737614244506,1.42535546,102680.0,102670.0,6.05724326]
[1737614246626,0.55705546,102680.0,102670.0,6.05724326]
[1737614253932,0.54219726,102680.0,102670.0,6.00794326]
[1737614254383,0.61392565,102680.0,102670.0,5.92774326]
[1737614255071,0.54219726,102680.0,102670.0,5.92774326]
[1737614256038,0.60065726,102680.0,102670.0,5.92774326]
[1737614257136,0.69800455,102680.0,102670.0,5.92774326]
[1737614264081,0.63954455,102680.0,102670.0,5.92774326]
[1737614264285,0.54219726,102680.0,102670.0,5.92774326]
[1737614270373,0.54219726,102680.0,102670.0,6.00484326]
[1737614270602,0.54206822,102680.0,102670.0,6.00484326]
[1737614294767,0.54206822,102680.0,102670.0,6.05164326]
[1737614296925,0.61379661,102680.0,102670.0,6.00484326]
[1737614297082,0.70845326,102680.0,102670.0,5.92774326]
[1737614300529,0.61379661,102680.0,102670.0,5.92774326]
[1737614305898,0.65274161,102680.0,102670.0,5.92774326]
[1737614307011,0.71095161,102680.0,102670.0,5.92774326]
[1737614307210,0.71095161,102680.0,102670.0,0.00400341]
[1737614311380,0.63922322,102680.0,102670.0,0.08320341]
[1737614312591,0.58076322,102680.0,102670.0,0.13050341]
[1737614312771,0.57262142,102680.0,102670.0,0.13050341]
[1737614312994,0.55776322,102680.0,102670.0,0.13050341]
[1737614313419,0.58076322,102680.0,102670.0,0.13050341]
[1737614313823,0.48414438,102680.0,102670.0,0.13050341]
[1737614314031,0.58153338,102680.0,102670.0,0.13050341]
[1737614314814,0.54258838,102680.0,102670.0,0.13050341]
[1737614315827,0.61431677,102680.0,102670.0,0.08320341]
[1737614317959,0.54258838,102680.0,102670.0,0.08320341]
[1737614319318,0.61431677,102680.0,102670.0,0.08320341]
[1737614320203,0.54258838,102680.0,102670.0,0.08320341]
[1737614321760,0.49493276,102680.0,102670.0,0.32073645]
[1737614322407,1.36323276,102680.0,102670.0,0.32073645]
[1737614324385,1.36337526,102680.0,102670.0,0.32073645]
[1737614325408,1.39303794,102680.0,102670.0,0.32073645]
[1737614334713,1.46476633,102680.0,102670.0,0.32073645]
[1737614335382,1.46476633,102680.0,102670.0,0.08320341]
[1737614335828,1.39303794,102680.0,102670.0,0.08320341]
[1737614336306,1.46476633,102680.0,102670.0,0.08320341]
[1737614336756,1.52322633,102680.0,102670.0,0.08320341]
[1737614340056,1.52322633,102680.0,102670.0,0.08228747]
[1737614340299,0.65492633,102680.0,102670.0,0.08228747]
[1737614340649,0.65492633,102680.0,102670.0,0.08228763]
[1737614343756,0.270399,102670.0,102660.0,0.0466]
[1737614344015,0.43947468,102670.0,102660.0,0.03619837]
[1737614344282,0.51120307,102670.0,102660.0,0.03619837]
[1737614345175,0.51120307,102670.0,102660.0,5.008e-05]
[1737614346689,0.58293146,102670.0,102660.0,5.008e-05]
[1737614347168,0.55765905,102670.0,102660.0,5.008e-05]
[1737614347525,0.62938744,102670.0,102660.0,5.008e-05]
[1737614348460,0.53198844,102670.0,102650.0,0.07909478]
[1737614348667,0.46259964,102660.0,102650.0,0.07909478]
[1737614349018,0.58294046,102660.0,102650.0,0.07909478]
[1737614349822,0.2532563,102670.0,102660.0,0.5086506]
[1737614350065,0.35072001,102670.0,102660.0,0.5086506]
[1737614350298,0.35072001,102670.0,102660.0,0.4112406]
[1737614350469,0.50744518,102670.0,102660.0,0.4112406]
[1737614351047,0.60479247,102670.0,102660.0,0.3917586]
[1737614351255,0.60479247,102670.0,102660.0,0.31705754]
[1737614352083,0.77779247,102670.0,102660.0,0.21964754]
[1737614353136,0.77779247,102670.0,102660.0,0.16120154]
[1737614353381,0.87513976,102670.0,102660.0,0.12223754]
[1737614354044,0.95383976,102670.0,102660.0,0.02482754]
[1737614355165,0.95383976,102670.0,102660.0,5.4e-07]
[1737614355369,0.95383976,102670.0,102660.0,6.6e-07]
[1737614355655,0.95383976,102670.0,102660.0,1e-07]
[1737614355864,0.349108,102660.0,102650.0,0.59626981]
[1737614356041,0.61553097,102660.0,102650.0,0.55730181]
[1737614358971,0.75898775,102660.0,102650.0,0.55730181]
[1737614359697,0.81744775,102660.0,102650.0,0.46581449]
[1737614359901,0.81744775,102660.0,102650.0,0.44633049]
[1737614360240,0.81744775,102660.0,102650.0,0.42684649]
[1737614360848,0.81744775,102660.0,102650.0,0.42714574]
[1737614361153,0.72010046,102660.0,102650.0,0.42714574]
[1737614361581,0.328878,102650.0,102640.0,0.49235164]
[1737614361876,0.64141046,102650.0,102640.0,0.43455386]
[1737614362245,0.71921046,102650.0,102640.0,0.12007579]
[1737614362385,0.86295775,102650.0,102640.0,0.05708728]
[1737614362596,0.78461829,102650.0,102640.0,0.05708728]
[1737614362802,0.66813829,102650.0,102640.0,0.0188876]
[1737614363027,0.66813829,102650.0,102640.0,0.00470849]
[1737614363531,0.270427,102640.0,102630.0,0.6812516]
[1737614363692,0.58295946,102640.0,102630.0,0.6812516]
[1737614363894,0.68030675,102640.0,102630.0,0.6812516]
[1737614364097,1.03876675,102640.0,102630.0,0.4457556]
[1737614364300,1.03876675,102640.0,102630.0,0.4052062]
[1737614364502,1.03876675,102640.0,102630.0,0.38517442]
[1737614365070,1.03876675,102640.0,102630.0,0.28773942]
[1737614365303,1.03876675,102640.0,102630.0,0.16913473]
[1737614365683,1.03876675,102640.0,102630.0,0.05225979]
[1737614365891,0.097437,102630.0,102620.0,0.60619787]
[1737614366117,0.48824107,102630.0,102620.0,0.73229787]
[1737614366517,0.55996946,102630.0,102620.0,0.73229787]
[1737614366721,0.58296946,102630.0,102620.0,0.73229787]
[1737614367248,0.58296946,102630.0,102620.0,0.73279908]
[1737614368493,0.58296946,102630.0,102620.0,0.71331008]
[1737614369673,0.58671857,102630.0,102620.0,0.69382108]
[1737614369894,0.58671857,102630.0,102620.0,0.67433208]
[1737614370100,1.45501857,102630.0,102620.0,0.67433208]
[1737614371625,1.47407373,102630.0,102620.0,0.67433208]
[1737614373471,1.47407373,102630.0,102620.0,0.67463133]
[1737614374017,1.56123867,102630.0,102620.0,0.67463133]
[1737614375457,1.59167649,102630.0,102620.0,0.67463133]
[1737614376487,1.59167649,102630.0,102620.0,0.53068633]
[1737614377166,1.59167649,102630.0,102620.0,0.49170833]
[1737614377410,1.50451155,102630.0,102620.0,0.43324133]
[1737614378121,1.47407373,102630.0,102620.0,0.43324133]
[1737614378558,1.47407373,102630.0,102620.0,0.35528533]
[1737614378767,1.47407373,102630.0,102620.0,0.33579633]
[1737614379743,1.47407373,102630.0,102620.0,0.31630733]
[1737614380092,1.47407373,102630.0,102620.0,0.29681833]
[1737614381142,1.59707373,102630.0,102620.0,0.19772933]
[1737614381508,1.47407373,102630.0,102620.0,0.11977333]
[1737614381697,1.47407373,102630.0,102620.0,0.10028433]
[1737614382341,1.47407373,102630.0,102620.0,0.00283933]
[1737614382616,0.270446,102620.0,102610.0,0.6830606]
[1737614382813,0.58672757,102620.0,102610.0,0.68321046]
[1737614384463,0.58672757,102620.0,102610.0,0.66371946]
[1737614384712,0.58672757,102620.0,102610.0,0.60524646]
[1737614384899,0.58672757,102620.0,102610.0,0.58575546]
[1737614385102,0.58672757,102620.0,102610.0,0.56626446]
[1737614385326,0.58672757,102620.0,102610.0,0.54677346]
[1737614385546,0.58672757,102620.0,102610.0,0.48830046]
[1737614385807,0.6180351,102620.0,102610.0,0.48830046]
[1737614386196,0.58672757,102620.0,102610.0,0.44931846]
[1737614386365,0.58672757,102620.0,102610.0,0.41033646]
[1737614386573,0.58672757,102620.0,102610.0,0.39084546]
[1737614387173,0.58672757,102620.0,102610.0,0.35186346]
[1737614387413,0.58672757,102620.0,102610.0,0.33237246]
[1737614387651,0.58672757,102620.0,102610.0,0.31288146]
[1737614389824,0.73043011,102620.0,102610.0,0.31288146]
[1737614390244,0.76940111,102620.0,102610.0,0.31288146]
[1737614390901,0.6223181,102620.0,102610.0,0.31288146]
[1737614391505,0.71966539,102620.0,102610.0,0.31288146]
[1737614392067,0.63792038,102620.0,102610.0,0.27389946]
[1737614392266,0.63792038,102620.0,102610.0,0.21542646]
[1737614393226,0.63792038,102620.0,102610.0,0.13746246]
[1737614393433,0.0648582,102610.0,102600.0,0.69335985]
[1737614393647,0.5910371,102610.0,102600.0,0.69335985]
[1737614394073,0.5910371,102610.0,102600.0,0.59488085]
[1737614394284,0.5910371,102610.0,102600.0,0.55589485]
[1737614394591,0.68838439,102610.0,102600.0,0.47889485]
[1737614395023,0.8910371,102610.0,102600.0,0.44010985]
[1737614395175,0.8910371,102610.0,102600.0,0.32290885]
[1737614397143,0.8910371,102610.0,102600.0,0.2647291]
[1737614397325,0.8910371,102610.0,102600.0,0.2062501]
[1737614397750,0.8910371,102610.0,102600.0,0.2637571]
[1737614397751,0.33850583,102610.0,102600.0,0.2637571]
[1737614397961,0.4103571,102610.0,102600.0,0.3121571]
[1737614398346,0.4333571,102610.0,102600.0,0.3121571]
[1737614398747,0.5833571,102610.0,102600.0,0.3121571]
[1737614398957,0.51150583,102610.0,102600.0,0.3121571]
[1737614399127,1.37980583,102610.0,102600.0,0.3121571]
[1737614399330,1.39895418,102610.0,102600.0,0.3121571]
[1737614399930,1.47421524,102610.0,102600.0,0.3121571]
[1737614401030,1.57156253,102610.0,102600.0,0.3121571]
[1737614401578,1.47421524,102610.0,102600.0,0.3121571]
[1737614404511,1.47421524,102610.0,102600.0,0.2052781]
[1737614404762,1.48189524,102610.0,102600.0,0.15603848]
[1737614405579,1.48189524,102610.0,102600.0,0.20263848]
[1737614406057,1.47421524,102610.0,102600.0,0.20263848]
[1737614411570,1.47435774,102610.0,102600.0,0.20263848]
[1737614418503,1.56645799,102610.0,102600.0,0.20263848]
[1737614420753,1.47435774,102610.0,102600.0,0.20263848]
[1737614420974,1.47435774,102610.0,102600.0,0.15603848]
[1737614421205,1.47435774,102610.0,102600.0,0.14603848]
[1737614421907,1.47098521,102610.0,102600.0,0.14603848]
[1737614424592,1.47098521,102610.0,102600.0,0.06903848]
[1737614424800,1.5683325,102610.0,102600.0,0.06903848]
[1737614426002,1.47098521,102610.0,102600.0,0.06903848]
[1737614426410,0.60268521,102610.0,102600.0,0.06903848]
[1737614429166,0.60268521,102610.0,102600.0,0.0081119]
[1737614430594,0.61036521,102610.0,102600.0,0.0081119]
[1737614432060,0.61036521,102610.0,102600.0,0.01222561]
[1737614432269,0.7077125,102610.0,102600.0,0.01222561]
[1737614432870,0.61036521,102610.0,102600.0,0.01222561]
[1737614433108,0.53850152,102610.0,102600.0,0.09392561]
[1737614433318,0.61036521,102610.0,102600.0,0.09392561]
[1737614433736,0.61377434,102610.0,102600.0,0.09392561]
[1737614445064,0.60609434,102610.0,102600.0,0.01222561]
[1737614445297,1.01112163,102610.0,102600.0,0.01222561]
[1737614447997,0.270465,102600.0,102590.0,0.41472256]
[1737614448224,0.88681249,102600.0,102590.0,0.2910635]
[1737614448430,0.88681249,102600.0,102590.0,0.2520735]
[1737614448637,0.98415978,102600.0,102590.0,0.2520735]
[1737614448874,0.59449249,102600.0,102590.0,0.3799735]
[1737614449477,0.58681249,102600.0,102590.0,0.3799735]
[1737614449633,0.59449249,102600.0,102590.0,0.3799735]
[1737614453679,0.60484204,102600.0,102590.0,0.3799735]
[1737614453882,0.59716204,102600.0,102590.0,0.3799735]
[1737614455622,0.59716204,102600.0,102590.0,0.38569523]
[1737614457343,0.59716204,102600.0,102590.0,0.38480353]
[1737614457551,0.59716204,102600.0,102590.0,0.38291598]
[1737614468159,0.64716204,102600.0,102590.0,0.38291598]
[1737614468360,0.59716204,102600.0,102590.0,0.38291598]
[1737614468596,0.64716204,102600.0,102590.0,0.38291598]
[1737614469205,0.59716204,102600.0,102590.0,0.38291598]
[1737614479325,0.64716204,102600.0,102590.0,0.38291598]
[1737614479734,0.59716204,102600.0,102590.0,0.38291598]
[1737614480376,0.59730454,102600.0,102590.0,0.38291598]
[1737614482353,0.59730454,102600.0,102590.0,0.25501598]
[1737614483840,0.69465183,102600.0,102590.0,0.25501598]
[1737614484469,0.59730454,102600.0,102590.0,0.25501598]
[1737614485930,0.89730454,102600.0,102590.0,0.21602598]
[1737614486152,1.02620454,102600.0,102590.0,0.21602598]
[1737614486357,1.02620454,102600.0,102590.0,0.19653098]
[1737614486557,0.270475,102590.0,102580.0,0.56984916]
[1737614486759,0.68080646,102590.0,102580.0,0.56984916]
[1737614487072,0.51938021,102590.0,102580.0,0.65034916]
[1737614487513,0.59125917,102590.0,102580.0,0.65034916]
[1737614487722,0.51938021,102590.0,102580.0,0.65034916]
[1737614489183,0.51938021,102590.0,102580.0,0.65466227]
[1737614492238,0.51938021,102590.0,102580.0,0.65496152]
[1737614495270,0.53852174,102590.0,102580.0,0.65496152]
[1737614496249,0.70774799,102590.0,102580.0,0.57446152]
[1737614497224,0.6104007,102590.0,102580.0,0.57446152]
[1737614497694,0.53852174,102590.0,102580.0,0.57446152]
[1737614499449,0.6104007,102590.0,102580.0,0.57446152]
[1737614499649,0.53852174,102590.0,102580.0,0.57446152]
[1737614503286,0.53866424,102590.0,102580.0,0.57446152]
[1737614504601,0.53086424,102590.0,102580.0,0.65276152]
[1737614504807,0.53854424,102590.0,102580.0,0.65276152]
[1737614505238,0.53086424,102590.0,102580.0,0.65276152]
[1737614505445,0.53854424,102590.0,102580.0,0.65276152]
[1737614506601,0.53086424,102590.0,102580.0,0.65276152]
[1737614506839,1.40684424,102590.0,102580.0,0.65276152]
[1737614507813,1.39916424,102590.0,102580.0,0.65276152]
[1737614508059,1.40684424,102590.0,102580.0,0.65276152]
[1737614512787,0.53854424,102590.0,102580.0,0.65276152]
[1737614515283,0.53086424,102590.0,102580.0,0.65276152]
[1737614515594,0.53854424,102590.0,102580.0,0.65276152]
[1737614516958,0.52379324,102590.0,102580.0,0.65276152]
[1737614518614,1.39209324,102590.0,102580.0,0.65276152]
[1737614521054,1.47008324,102590.0,102580.0,0.65276152]
[1737614521281,1.56131949,102590.0,102580.0,0.57446152]
[1737614521770,1.48176053,102590.0,102580.0,0.57446152]
[1737614521941,1.38441324,102590.0,102580.0,0.57446152]
[1737614522164,1.38441324,102590.0,102580.0,0.70236152]
[1737614522603,1.38441324,102590.0,102580.0,0.69929107]
[1737614526979,1.4562922,102590.0,102580.0,0.64969107]
[1737614527433,1.38441324,102590.0,102580.0,0.64969107]
[1737614530236,1.39209324,102590.0,102580.0,0.64969107]
[1737614534619,1.44209324,102590.0,102580.0,0.64969107]
[1737614535555,1.38441324,102590.0,102580.0,0.57139107]
[1737614536017,1.38441324,102590.0,102580.0,0.64669107]
[1737614536462,0.51611324,102590.0,102580.0,0.64669107]
[1737614539229,0.45909248,102590.0,102580.0,0.69459107]
[1737614539661,0.53097144,102590.0,102580.0,0.69459107]
[1737614542778,0.58097144,102590.0,102580.0,0.69459107]
[1737614542997,0.51611324,102590.0,102580.0,0.69459107]
[1737614543217,0.5879922,102590.0,102580.0,0.64669107]
[1737614543425,0.51611324,102590.0,102580.0,0.64669107]
[1737614551325,0.57462324,102590.0,102580.0,0.64669107]
[1737614551529,0.51611324,102590.0,102580.0,0.64669107]
[1737614579191,0.55509324,102590.0,102580.0,0.64669107]
[1737614584241,0.6269722,102590.0,102580.0,0.55189407]
[1737614586070,0.55509324,102590.0,102580.0,0.63419407]
[1737614586254,1.43103324,102590.0,102580.0,0.63419407]
[1737614591517,1.5029122,102590.0,102580.0,0.63419407]
[1737614591755,1.5029122,102590.0,102580.0,0.55189407]
[1737614594458,1.43103324,102590.0,102580.0,0.55189407]
[1737614594667,1.43103324,102590.0,102580.0,0.63419407]
[1737614595431,1.5029122,102590.0,102580.0,0.63419407]
[1737614596057,1.60025949,102590.0,102580.0,0.63419407]
[1737614596990,1.5029122,102590.0,102580.0,0.63419407]
[1737614597192,1.43103324,102590.0,102580.0,0.63419407]
[1737614597517,1.5029122,102590.0,102580.0,0.63419407]
[1737614598325,1.43103324,102590.0,102580.0,0.63419407]
[1737614601789,1.5029122,102590.0,102580.0,0.63419407]
[1737614601988,1.5029122,102590.0,102580.0,0.55189407]
[1737614602946,1.43103324,102590.0,102580.0,0.55189407]
[1737614603175,1.5029122,102590.0,102580.0,0.55189407]
[1737614604993,1.50123316,102590.0,102580.0,0.55189407]
[1737614607422,1.50123316,102590.0,102580.0,0.53215892]
[1737614608276,1.50123316,102590.0,102580.0,0.00461236]
[1737614608478,1.59858045,102590.0,102580.0,0.00461236]
[1737614609922,1.50123316,102590.0,102580.0,0.00461236]
[1737614611089,1.50123316,102590.0,102580.0,0.00029925]
[1737614611355,1.50123316,102590.0,102580.0,0.0050792]
[1737614611555,1.50123316,102590.0,102580.0,0.00029925]
[1737614611966,1.50123316,102590.0,102580.0,0.0050792]
[1737614612468,1.59858045,102590.0,102580.0,0.0050792]
[1737614613646,0.73028045,102590.0,102580.0,0.0050792]
[1737614614937,0.63293316,102590.0,102580.0,0.0050792]
[1737614618979,0.63293316,102590.0,102580.0,0.07799925]
[1737614619381,0.5610542,102590.0,102580.0,0.08278343]
[1737614619736,0.63293316,102590.0,102580.0,0.08278343]
[1737614621143,0.65140675,102590.0,102580.0,0.00508343]
[1737614623062,0.270484,102580.0,102570.0,0.07191604]
[1737614623362,0.58346817,102580.0,102570.0,0.07191604]
[1737614623723,1.45176817,102580.0,102570.0,0.07191604]
[1737614624362,1.45176817,102580.0,102570.0,0.07196615]
[1737614625309,1.46269126,102580.0,102570.0,0.07196615]
[1737614627174,1.46269126,102580.0,102570.0,0.0722654]
[1737614627518,1.55968425,102580.0,102570.0,0.0722654]
[1737614627750,1.46269126,102580.0,102570.0,0.0722654]
[1737614629934,0.320494,102570.0,102560.0,0.00029925]
[1737614630100,0.56159921,102570.0,102560.0,0.07804937]
[1737614630543,0.56159921,102570.0,102560.0,0.12614937]
[1737614633613,0.63347817,102570.0,102560.0,0.12614937]
[1737614633842,0.56159921,102570.0,102560.0,0.12614937]
[1737614637644,0.58146678,102570.0,102560.0,0.12614937]
[1737614638248,0.47444602,102570.0,102560.0,0.12614937]
[1737614638456,0.54632498,102570.0,102560.0,0.12614937]
[1737614639469,0.59632498,102570.0,102560.0,0.12614937]
[1737614650810,0.59646748,102570.0,102560.0,0.12614937]
[1737614662584,0.43673032,102570.0,102560.0,0.12614937]
[1737614662797,0.41686275,102570.0,102560.0,0.12614937]
[1737614663226,0.28986275,102570.0,102560.0,0.12614937]
[1737614663592,0.36174171,102570.0,102560.0,0.12614937]
[1737614663798,0.43986275,102570.0,102560.0,0.12614937]
[1737614672435,0.42694444,102570.0,102560.0,0.12614937]
[1737614683684,0.4988234,102570.0,102560.0,0.12614937]
[1737614689175,0.4988234,102570.0,102560.0,0.07804937]
[1737614689378,0.5136816,102570.0,102560.0,0.00034937]
[1737614691182,0.5136816,102570.0,102560.0,0.08044937]
[1737614691710,0.5136816,102570.0,102560.0,0.09348423]
[1737614692797,0.4988234,102570.0,102560.0,0.09348423]
[1737614693009,0.42694444,102570.0,102560.0,0.09348423]
[1737614693592,0.4988234,102570.0,102560.0,0.09348423]
[1737614693790,0.42694444,102570.0,102560.0,0.09420447]
[1737614693991,0.42694444,102570.0,102560.0,0.09348423]
[1737614695051,0.4988234,102570.0,102560.0,0.09348423]
[1737614706193,0.4988234,102570.0,102560.0,0.14318423]
[1737614707645,0.4988234,102570.0,102560.0,0.13014937]
[1737614712169,0.30659715,102570.0,102560.0,0.13529117]
[1737614712587,0.32959715,102570.0,102560.0,0.23279417]
[1737614713624,0.32959715,102570.0,102560.0,0.13529117]
[1737614713829,0.32959715,102570.0,102560.0,0.23279417]
[1737614720005,0.32959715,102570.0,102560.0,0.13529117]
[1737614722168,0.32959715,102570.0,102560.0,0.23279417]
[1737614723494,0.32959715,102570.0,102560.0,0.13529117]
[1737614728449,0.42694444,102570.0,102560.0,0.13014937]
[1737614728658,0.4988234,102570.0,102560.0,0.13014937]
[1737614728841,0.4988234,102570.0,102560.0,0.14370841]
[1737614729050,0.4988234,102570.0,102560.0,0.13014937]
[1737614729277,0.4988234,102570.0,102560.0,0.00034937]
[1737614732785,0.70896056,102570.0,102560.0,0.00034937]
[1737614732944,0.75896056,102570.0,102560.0,0.00034937]
[1737614733147,0.70896056,102570.0,102560.0,0.00034937]
[1737614733359,0.6370816,102570.0,102560.0,0.00034937]
[1737614735199,0.70896056,102570.0,102560.0,0.00034937]
[1737614735399,0.69410236,102570.0,102560.0,0.00034937]
[1737614739329,0.70166236,102570.0,102560.0,0.00034937]
[1737614744391,0.70166236,102570.0,102560.0,3.7e-07]
[1737614744392,0.75166236,102570.0,102560.0,3.7e-07]
[1737614753750,0.75166236,102570.0,102560.0,0.00029962]
[1737614755687,0.62826236,102570.0,102560.0,0.00029962]
[1737614757497,0.62070236,102570.0,102560.0,0.00029962]
[1737614757694,0.62826236,102570.0,102560.0,0.00029962]
[1737614760030,0.64776236,102570.0,102560.0,0.00029962]
[1737614760238,0.62826236,102570.0,102560.0,0.00029962]
[1737614765027,0.57826236,102570.0,102560.0,0.00029962]
[1737614765293,0.62826236,102570.0,102560.0,0.00029962]
[1737614766126,0.70486236,102570.0,102560.0,0.00029962]
[1737614769005,0.62826236,102570.0,102560.0,0.00029962]
[1737614770432,0.64312056,102570.0,102560.0,0.00029962]
[1737614771047,0.62826236,102570.0,102560.0,0.00029962]
[1737614771959,0.70486236,102570.0,102560.0,0.00029962]
[1737614772554,0.70482236,102570.0,102560.0,0.00029962]
[1737614774452,0.75725414,102570.0,102560.0,0.00029962]
[1737614774650,0.65990685,102570.0,102560.0,0.00029962]
[1737614775811,0.71841685,102570.0,102560.0,0.00029962]
[1737614777504,0.64181685,102570.0,102560.0,0.00029962]
[1737614778840,0.2378582,102560.0,102550.0,0.07836624]
[1737614779038,0.50458745,102560.0,102550.0,0.07841637]
[1737614779358,0.50458745,102560.0,102550.0,0.09096801]
[1737614780118,1.37288745,102560.0,102550.0,0.09096801]
[1737614781099,1.38040745,102560.0,102550.0,0.09096801]
[1737614781549,1.33040745,102560.0,102550.0,0.09096801]
[1737614781755,1.37990821,102560.0,102550.0,0.13966801]
[1737614781964,1.35690821,102560.0,102550.0,0.13966801]
[1737614782179,1.20690821,102560.0,102550.0,0.14064303]
[1737614782590,1.22990821,102560.0,102550.0,0.13966801]
[1737614782792,1.37990821,102560.0,102550.0,0.13966801]
[1737614783308,1.22990821,102560.0,102550.0,0.13966801]
[1737614783513,0.27687858,102560.0,102550.0,0.24329783]
[1737614783744,0.08202829,102560.0,102550.0,0.24232281]
[1737614784175,0.17603087,102560.0,102550.0,0.24232281]
[1737614784386,0.15040683,102560.0,102550.0,0.24232281]
[1737614786947,0.08202829,102560.0,102550.0,0.24232281]
[1737614787122,0.15390725,102560.0,102550.0,0.24232281]
[1737614787766,0.25141025,102560.0,102550.0,0.24232281]
[1737614787961,0.17953129,102560.0,102550.0,0.24232281]
[1737614788091,0.25141025,102560.0,102550.0,0.24232281]
[1737614789162,0.15390725,102560.0,102550.0,0.24232281]
[1737614789296,0.08202829,102560.0,102550.0,0.24232281]
[1737614790149,0.17953129,102560.0,102550.0,0.24232281]
[1737614790380,0.27441025,102560.0,102550.0,0.14480981]
[1737614791234,0.36195319,102560.0,102550.0,0.14480981]
[1737614791427,0.61195319,102560.0,102550.0,0.14480981]
[1737614792218,0.61195319,102560.0,102550.0,0.13966801]
[1737614792420,0.61195319,102560.0,102550.0,0.14480981]
[1737614792863,0.60883319,102560.0,102550.0,0.14480981]
[1737614793640,0.60883319,102560.0,102550.0,0.24232281]
[1737614794189,0.60883319,102560.0,102550.0,0.14480981]
[1737614795342,0.60883319,102560.0,102550.0,0.13966801]
[1737614795576,0.60883319,102560.0,102550.0,0.14480981]